bitfinex/quotes_SOLUSD_20260103
["timestamp","ask_amount","ask_price","bid_price","bid_amount"]
[1767405222474,4.15356742,132.6,132.57,8.24064241]
[1767405223281,5.6463859,132.59,132.57,8.24064241]
[1767405223483,0.71208719,132.59,132.57,7.54318473]
[1767405224389,4.15356742,132.59,132.57,7.54318473]
[1767405224772,3.44148023,132.59,132.57,8.24064241]
[1767405225196,4.15356742,132.6,132.57,8.24064241]
[1767405225579,0.71208719,132.59,132.57,8.24064241]
[1767405226874,0.68208719,132.59,132.57,8.24064241]
[1767405227680,4.12356742,132.59,132.57,7.54318473]
[1767405235495,0.68208719,132.59,132.57,7.54318473]
[1767405237102,0.68208719,132.59,132.56,0.89745768]
[1767405237103,0.71208719,132.58,132.56,8.44103865]
[1767405239104,0.71208719,132.59,132.56,8.44103865]
[1767405239406,4.15356742,132.59,132.56,8.44103865]
[1767405243112,0.71208719,132.59,132.56,8.44103865]
[1767405243409,4.15356742,132.59,132.56,8.44103865]
[1767405243789,0.71208719,132.59,132.56,8.44103865]
[1767405248806,0.68639458,132.57,132.55,40.89550749]
[1767405249010,0.68639458,132.55,132.53,0.2]
[1767405249211,4.12787481,132.55,132.53,0.2]
[1767405249408,0.68639458,132.55,132.53,0.2]
[1767405250090,0.68639458,132.55,132.53,7.74544289]
[1767405254693,26.39374333,132.61,132.53,26.6090964]
[1767405254897,14.16007139,132.6,132.54,0.66480894]
[1767405255103,9.08283901,132.59,132.54,0.66480894]
[1767405255306,5.64135878,132.58,132.54,4.10628917]
[1767405255617,3.44148023,132.6,132.55,0.66480894]
[1767405255822,5.6408488,132.59,132.55,0.66480894]
[1767405256012,5.6408488,132.58,132.55,0.66480894]
[1767405256322,3.44148023,132.6,132.55,0.66480894]
[1767405256508,5.64090168,132.59,132.55,0.66480894]
[1767405256820,5.64090168,132.58,132.56,7.54375377]
[1767405257012,0.68639458,132.59,132.56,7.54375377]
[1767405257319,5.64089937,132.58,132.56,7.54375377]
[1767405257516,0.68639458,132.59,132.56,8.20856271]
[1767405257706,5.64085342,132.58,132.56,8.20856271]
[1767405257906,0.68639458,132.59,132.56,8.20856271]
[1767405258108,5.64085342,132.58,132.56,8.20856271]
[1767405258311,0.68639458,132.59,132.56,8.20856271]
[1767405258607,5.64095268,132.58,132.56,8.20856271]
[1767405258812,0.68639458,132.59,132.56,8.20856271]
[1767405259008,5.64095431,132.58,132.56,8.20856271]
[1767405259239,0.68639458,132.59,132.56,8.20856271]
[1767405259414,5.64107523,132.58,132.56,8.20856271]
[1767405259709,0.68639458,132.59,132.56,8.20856271]
[1767405259914,5.64107686,132.58,132.56,8.20856271]
[1767405260112,0.68639458,132.59,132.56,8.20856271]
[1767405260313,5.64122155,132.58,132.56,8.20856271]
[1767405260525,0.68639458,132.59,132.56,8.20856271]
[1767405260701,5.64132652,132.58,132.56,8.20856271]
[1767405260905,0.68639458,132.59,132.56,8.20856271]
[1767405261102,5.64132652,132.58,132.56,8.20856271]
[1767405261305,0.68639458,132.59,132.56,8.20856271]
[1767405261621,5.64161071,132.58,132.56,8.20856271]
[1767405261821,0.68639458,132.59,132.56,8.20856271]
[1767405262124,5.64160909,132.58,132.56,8.20856271]
[1767405262327,0.68639458,132.59,132.56,8.20856271]
[1767405262620,5.64181347,132.58,132.56,8.20856271]
[1767405262814,0.68639458,132.59,132.56,8.20856271]
[1767405263014,5.63973203,132.58,132.56,8.20856271]
[1767405263220,0.68639458,132.59,132.56,8.20856271]
[1767405263525,5.64113195,132.58,132.56,8.20856271]
[1767405263706,0.68639458,132.59,132.56,8.20856271]
[1767405263907,5.64115262,132.58,132.56,8.20856271]
[1767405264109,0.68639458,132.59,132.56,8.20856271]
[1767405264308,5.64130021,132.58,132.56,8.20856271]
[1767405264509,2.89006462,132.59,132.56,8.20856271]
[1767405264711,5.64152662,132.58,132.56,8.20856271]
[1767405265033,2.89006462,132.59,132.56,8.20856271]
[1767405265204,5.64152978,132.58,132.56,8.20856271]
[1767405265406,2.89006462,132.59,132.56,8.20856271]
[1767405265628,5.64196233,132.58,132.56,8.20856271]
[1767405265922,7.54090943,132.61,132.53,0.2]
[1767405265923,0.68639458,132.6,132.57,0.66480894]
[1767405267812,0.68639458,132.6,132.58,7.54261577]
[1767405278537,2.89006462,132.6,132.57,0.66480894]
[1767405278725,2.89006462,132.6,132.57,8.20778395]
[1767405279838,0.68639458,132.6,132.57,8.20778395]
[1767405293744,2.20367004,132.61,132.58,0.65657237]
[1767405293939,10.44409629,132.62,132.58,0.65657237]
[1767405294250,0.69984002,132.61,132.58,0.65657237]
[1767405296428,0.69984002,132.61,132.58,8.19903495]
[1767405296628,2.90351006,132.61,132.58,8.19903495]
[1767405296830,0.69984002,132.6,132.58,7.54246258]
[1767405297851,0.69984002,132.6,132.57,7.54291385]
[1767405297852,0.69984002,132.59,132.57,7.54291385]
[1767405298051,2.90351006,132.59,132.57,7.54291385]
[1767405298832,0.69984002,132.59,132.57,7.54291385]
[1767405300352,0.69984002,132.59,132.57,0.65744139]
[1767405302057,0.69984002,132.59,132.57,8.20056838]
[1767405302460,0.69984002,132.59,132.57,7.54312699]
[1767405302631,0.68418464,132.59,132.57,8.20056838]
[1767405313670,2.20367004,132.58,132.54,0.75448921]
[1767405313966,2.20367004,132.55,132.52,0.2]
[1767405314148,2.20367004,132.54,132.52,0.2]
[1767405314343,2.20367004,132.53,132.52,0.2]
[1767405314566,15.96367004,132.58,132.52,0.85744139]
[1767405314868,2.20367004,132.55,132.53,0.65744139]
[1767405315047,5.64860895,132.54,132.53,0.65744139]
[1767405317457,2.20367004,132.55,132.53,0.65744139]
[1767405318479,3.44564717,132.55,132.53,0.65744139]
[1767405320472,3.44564717,132.56,132.53,0.65744139]
[1767405320666,5.63633826,132.55,132.53,0.65744139]
[1767405320858,3.44564717,132.56,132.53,0.65744139]
[1767405321052,5.63633089,132.55,132.53,0.65744139]
[1767405321255,3.44564717,132.56,132.53,0.65744139]
[1767405321569,5.63525667,132.55,132.53,0.65744139]
[1767405321766,3.44564717,132.56,132.53,0.65744139]
[1767405321956,5.63525667,132.55,132.53,0.65744139]
[1767405322271,3.44564717,132.56,132.53,0.65744139]
[1767405322473,5.63430624,132.55,132.53,0.65744139]
[1767405322770,3.44564717,132.56,132.53,0.65744139]
[1767405322953,5.63430624,132.55,132.53,0.65744139]
[1767405323157,3.44564717,132.56,132.53,0.65744139]
[1767405323354,5.63413527,132.55,132.53,0.65744139]
[1767405323671,3.44564717,132.56,132.53,0.65744139]
[1767405324258,0.58418464,132.6,132.55,0.65744139]
[1767405324555,3.44564717,132.58,132.55,0.65744139]
[1767405324776,11.57249865,132.58,132.54,8.20228337]
[1767405326575,8.12685148,132.58,132.54,8.20228337]
[1767405334384,11.57249865,132.58,132.54,8.20228337]
[1767405336285,5.63468464,132.57,132.54,8.20228337]
[1767405336478,11.57249865,132.58,132.54,8.20228337]
[1767405336683,5.63488362,132.57,132.54,8.20228337]
[1767405336879,11.57249865,132.58,132.54,8.20228337]
[1767405337184,5.63488524,132.57,132.54,8.20228337]
[1767405337392,11.57249865,132.58,132.54,8.20228337]
[1767405337565,5.63529019,132.57,132.54,8.20228337]
[1767405337765,11.57249865,132.58,132.54,8.20228337]
[1767405337966,5.63529181,132.57,132.54,8.20228337]
[1767405338274,11.57249865,132.58,132.54,8.20228337]
[1767405338476,5.63554016,132.57,132.54,8.20228337]
[1767405338683,11.57249865,132.58,132.54,8.20228337]
[1767405338882,5.63557134,132.57,132.54,8.20228337]
[1767405339187,11.57249865,132.58,132.54,8.20228337]
[1767405339373,5.63590038,132.57,132.54,8.20228337]
[1767405339579,11.57249865,132.58,132.54,8.20228337]
[1767405339876,5.63629064,132.57,132.54,8.20228337]
[1767405340069,11.57249865,132.58,132.54,8.20228337]
[1767405340269,5.63639586,132.57,132.54,8.20228337]
[1767405340482,11.57249865,132.58,132.54,8.20228337]
[1767405340664,5.6368639,132.57,132.54,8.20228337]
[1767405340869,11.57249865,132.58,132.54,8.20228337]
[1767405341067,5.63686412,132.57,132.54,8.20228337]
[1767405341281,11.57249865,132.58,132.54,8.20228337]
[1767405341597,5.63751806,132.57,132.54,8.20228337]
[1767405341768,11.57249865,132.58,132.54,8.20228337]
[1767405341968,5.63751968,132.57,132.54,8.20228337]
[1767405342168,5.63799732,132.56,132.54,8.20228337]
[1767405342385,11.57249865,132.58,132.54,8.20228337]
[1767405342569,5.63820476,132.57,132.54,8.20228337]
[1767405342766,5.63820476,132.56,132.54,8.20228337]
[1767405343064,11.57249865,132.58,132.54,8.20228337]
[1767405343380,5.63837685,132.57,132.54,8.20228337]
[1767405343581,5.63837685,132.56,132.54,8.20228337]
[1767405343770,4.02983181,132.58,132.54,8.20228337]
[1767405344092,5.63859108,132.57,132.54,8.20228337]
[1767405344387,5.63859108,132.56,132.54,8.20228337]
[1767405344588,4.02983181,132.58,132.54,8.20228337]
[1767405344791,5.6390111,132.57,132.54,8.20228337]
[1767405344974,5.6390111,132.56,132.54,8.20228337]
[1767405345177,4.02983181,132.58,132.54,8.20228337]
[1767405345386,5.6390111,132.57,132.54,8.20228337]
[1767405345565,5.6390111,132.56,132.54,8.20228337]
[1767405345766,4.02983181,132.58,132.54,8.20228337]
[1767405345993,5.63921799,132.57,132.54,8.20228337]
[1767405346185,5.63921799,132.56,132.54,8.20228337]
[1767405346373,4.02983181,132.58,132.54,8.20228337]
[1767405346574,5.63965888,132.57,132.54,8.20228337]
[1767405346769,5.63965888,132.56,132.54,8.20228337]
[1767405346969,4.02983181,132.58,132.54,8.20228337]
[1767405347171,5.63965867,132.57,132.54,8.20228337]
[1767405347469,5.63965867,132.56,132.54,8.20228337]
[1767405347671,4.02983181,132.58,132.54,8.20228337]
[1767405347878,5.64013674,132.57,132.54,8.20228337]
[1767405348082,5.64013674,132.56,132.54,8.20228337]
[1767405348283,4.02983181,132.58,132.54,8.20228337]
[1767405348477,9.08630789,132.57,132.54,8.20228337]
[1767405348791,5.64066072,132.56,132.54,8.20228337]
[1767405348991,3.44564717,132.57,132.54,8.20228337]
[1767405349203,5.64065496,132.56,132.55,0.70220239]
[1767405355384,5.64065496,132.56,132.54,7.54484198]
[1767405355585,3.44564717,132.56,132.54,7.54484198]
[1767405355788,3.44564717,132.56,132.54,8.24704437]
[1767405355981,5.64390968,132.55,132.54,8.24704437]
[1767405360602,3.44564717,132.57,132.54,8.24704437]
[1767405360795,0.58418464,132.58,132.54,8.24704437]
[1767405361099,3.44564717,132.57,132.54,8.24704437]
[1767405362102,3.44564717,132.57,132.55,0.68097009]
[1767405362999,3.44564717,132.57,132.54,8.22581207]
[1767405368401,3.44564717,132.56,132.54,8.22581207]
[1767405368606,3.44564717,132.56,132.54,0.68097009]
[1767405369893,3.44564717,132.55,132.54,0.68097009]
[1767405372607,9.08712049,132.55,132.54,0.68097009]
[1767405375810,5.64147332,132.55,132.54,0.68097009]
[1767405376008,9.08712049,132.55,132.54,0.68097009]
[1767405378618,0.1128215,132.58,132.54,7.5448921]
[1767405378803,7.39516912,132.58,132.54,7.5448921]
[1767405379105,2.91021948,132.57,132.54,8.22586219]
[1767405386626,0.70505671,132.57,132.54,8.22586219]
[1767405388925,0.70505671,132.57,132.55,0.69743852]
[1767405391414,0.58418464,132.59,132.55,0.69743852]
[1767405391609,5.64104794,132.58,132.56,0.67566812]
[1767405391811,3.48907401,132.6,132.56,0.67566812]
[1767405392021,10.71852048,132.59,132.56,0.67566812]
[1767405392219,5.6413012,132.58,132.56,0.67566812]
[1767405392432,3.48907401,132.6,132.56,0.67566812]
[1767405392634,10.84135744,132.59,132.56,0.67566812]
[1767405392837,5.64068204,132.58,132.56,0.67566812]
[1767405393013,0.12402066,132.59,132.56,0.67566812]
[1767405393213,5.20066875,132.59,132.56,0.67566812]
[1767405393422,5.07664809,132.59,132.56,8.21926354]
[1767405394813,1.28391124,132.61,132.57,0.67566812]
[1767405395016,10.7162554,132.6,132.57,0.67566812]
[1767405395218,1.28391124,132.61,132.58,8.21828389]
[1767405395538,10.71379751,132.6,132.58,8.21828389]
[1767405395840,1.28391124,132.61,132.58,8.21828389]
[1767405396022,10.71371659,132.6,132.58,8.21828389]
[1767405396217,3.48907401,132.61,132.58,8.21828389]
[1767405396410,10.71162625,132.6,132.58,8.21828389]
[1767405396611,3.48907401,132.61,132.58,8.21828389]
[1767405396811,10.7115222,132.6,132.58,8.21828389]
[1767405397033,0.58418464,132.61,132.59,0.67566812]
[1767405397336,5.65828395,132.61,132.59,0.67566812]
[1767405399143,103.0997266,132.63,132.6,0.67566812]
[1767405399441,6.35912574,132.65,132.61,0.67566812]
[1767405399442,0.6997266,132.65,132.61,0.67566812]
[1767405400018,0.6997266,132.65,132.61,2.88083089]
[1767405400227,0.6997266,132.65,132.62,0.67566812]
[1767405401144,0.6997266,132.65,132.63,4.98e-06]
[1767405403239,0.6997266,132.65,132.63,3.16e-06]
[1767405405217,0.6997266,132.65,132.63,7.53977545]
[1767405405425,0.6997266,132.65,132.63,7.51148861]
[1767405405650,0.6997266,132.65,132.62,0.67566812]
[1767405406823,0.6997266,132.65,132.62,0.6476107]
[1767405407223,0.6997266,132.66,132.62,7.54034082]
[1767405407637,0.6997266,132.66,132.62,9.74550359]
[1767405408032,0.6997266,132.66,132.62,7.54034082]
[1767405408925,0.6997266,132.66,132.63,8.2150204]
[1767405412356,2.90488937,132.66,132.63,8.2150204]
[1767405412749,2.35696028,132.65,132.62,8.21586296]
[1767405413548,2.35696028,132.65,132.63,0.67566812]
[1767405413742,2.35696028,132.65,132.63,0.64641171]
[1767405413944,2.90488937,132.64,132.61,13.76]
[1767405414137,2.20516277,132.63,132.61,13.76]
[1767405414337,2.38592412,132.63,132.6,7.54113739]
[1767405415245,2.38592412,132.63,132.59,7.54204691]
[1767405415635,2.38592412,132.63,132.6,0.67566812]
[1767405416050,2.20516277,132.63,132.6,0.67566812]
[1767405417352,2.20516277,132.63,132.61,0.67566812]
[1767405418840,2.38592412,132.63,132.6,8.2166927]
[1767405419539,2.38592412,132.63,132.61,0.66282745]
[1767405419752,2.20516277,132.63,132.61,0.66282745]
[1767405421251,2.20516277,132.63,132.6,7.54102458]
[1767405421458,0.68759758,132.62,132.6,7.54102458]
[1767405422054,0.68759758,132.62,132.61,7.54090943]
[1767405422254,0.68759758,132.62,132.61,7.34619318]
[1767405424654,0.68759758,132.62,132.59,8.20487436]
[1767405425732,2.20516277,132.63,132.61,0.66282745]
[1767405427762,2.20516277,132.63,132.61,8.2036883]
[1767405428952,2.30416277,132.63,132.61,8.2036883]
[1767405429161,2.30416277,132.63,132.61,7.54086085]
[1767405429364,2.78787437,132.62,132.59,8.20453177]
[1767405429661,2.20516277,132.62,132.6,8.20425237]
[1767405433564,2.30416277,132.61,132.57,0.66282745]
[1767405433778,0.10857798,132.57,132.54,0.66282745]
[1767405434060,7.54047005,132.62,132.55,0.66282745]
[1767405434061,26.3913221,132.62,132.55,0.66282745]
[1767405434240,2.20516277,132.59,132.55,0.66282745]
[1767405434646,2.79276035,132.59,132.55,0.66282745]
[1767405435166,2.79276035,132.59,132.56,0.66282745]
[1767405436742,2.79276035,132.59,132.56,8.20646432]
[1767405440475,4.03140676,132.59,132.56,8.20646432]
[1767405446069,4.02652078,132.57,132.54,21.96733178]
[1767405446767,3.44380918,132.56,132.54,21.96733178]
[1767405449375,3.44380918,132.56,132.54,8.20733178]
[1767405452558,3.44380918,132.55,132.54,8.20733178]
[1767405453058,3.44380918,132.56,132.54,8.20733178]
[1767405456194,0.5827116,132.57,132.54,8.20733178]
[1767405456764,4.02652078,132.57,132.54,8.20733178]
[1767405456981,3.99652078,132.57,132.54,8.20733178]
[1767405459879,3.44380918,132.57,132.55,0.6957128]
[1767405460492,3.54280918,132.57,132.55,0.6957128]
[1767405460869,3.54280918,132.57,132.55,8.23998846]
[1767405461913,3.44380918,132.57,132.55,8.23998846]
[1767405464688,3.44380918,132.56,132.54,8.2403501]
[1767405467402,3.54280918,132.57,132.54,8.2403501]
[1767405468309,3.54280918,132.57,132.54,8.24059868]
[1767405473615,0.55759758,132.58,132.55,0.6957128]
[1767405473790,22.11013837,132.63,132.55,0.6957128]
[1767405473791,4.00140676,132.59,132.55,0.6957128]
[1767405474506,40.96039252,132.63,132.55,0.6957128]
[1767405474710,3.44380918,132.59,132.55,0.6957128]
[1767405475503,3.44380918,132.59,132.56,7.54375377]
[1767405475794,3.5473493,132.59,132.57,0.6957128]
[1767405475995,3.5473493,132.59,132.56,8.23946657]
[1767405479222,4.00140676,132.6,132.57,0.6957128]
[1767405481419,4.00140676,132.6,132.57,8.23882866]
[1767405483021,3.44380918,132.59,132.57,8.23882866]
[1767405489627,3.54280918,132.59,132.57,8.23882866]
[1767405492531,3.44380918,132.59,132.57,8.23882866]
[1767405496933,3.54280918,132.59,132.56,8.20462066]
[1767405497433,3.54280918,132.59,132.57,0.66086689]
[1767405497608,3.44380918,132.59,132.57,0.66086689]
[1767405499327,3.44380918,132.62,132.58,0.66086689]
[1767405499631,10.69716801,132.61,132.58,0.66086689]
[1767405499925,3.54280918,132.62,132.58,0.66086689]
[1767405500106,10.69715063,132.61,132.58,8.20301081]
[1767405500306,0.099,132.62,132.59,0.66086689]
[1767405500502,5.16572764,132.62,132.59,0.66086689]
[1767405503111,0.099,132.62,132.59,8.20291362]
[1767405504525,5.16646891,132.62,132.59,8.20291362]
[1767405504723,0.55759758,132.64,132.6,0.66086689]
[1767405504934,5.6250105,132.64,132.6,0.66086689]
[1767405505524,0.55759758,132.64,132.6,0.66086689]
[1767405506642,0.55759758,132.64,132.6,8.20222739]
[1767405506838,2.7604715,132.64,132.6,8.20222739]
[1767405507342,0.55759758,132.64,132.6,8.20222739]
[1767405508526,2.7604715,132.64,132.6,8.20222739]
[1767405509121,2.7604715,132.64,132.61,0.72391228]
[1767405512060,7.53807,132.66,132.62,0.66333351]
[1767405512341,13.76,132.67,132.63,0.66333351]
[1767405512540,14.31759758,132.67,132.63,0.66333351]
[1767405513318,14.31759758,132.67,132.64,7.53920386]
[1767405513646,14.31759758,132.67,132.64,8.20253737]
[1767405516144,0.55759758,132.67,132.64,8.20253737]
[1767405516646,2.7604715,132.67,132.64,8.20253737]
[1767405517042,0.099,132.66,132.64,8.20253737]
[1767405519353,0.099,132.66,132.61,35.56923844]
[1767405519354,0.55759758,132.68,132.65,0.66333351]
[1767405519648,2.7604715,132.68,132.65,0.66333351]
[1767405520035,0.55759758,132.68,132.65,0.66333351]
[1767405520238,2.7604715,132.68,132.65,0.66333351]
[1767405521159,2.20287392,132.67,132.65,0.66333351]
[1767405522237,2.7604715,132.68,132.65,0.66333351]
[1767405525646,0.1,132.71,132.66,0.66333351]
[1767405525827,2.8604715,132.71,132.66,0.66333351]
[1767405527157,2.8604715,132.71,132.68,0.66333351]
[1767405529358,2.30287392,132.71,132.69,0.66333351]
[1767405529655,2.40187392,132.71,132.68,8.20023271]
[1767405530640,0.1,132.72,132.71,0.66333351]
[1767405531050,0.1,132.72,132.68,28.58210052]
[1767405531350,0.1,132.72,132.68,26.3792266]
[1767405532957,0.1,132.72,132.7,8.19912853]
[1767405533658,0.1,132.72,132.71,0.66333351]
[1767405534259,2.97308295,132.72,132.69,0.66333351]
[1767405534453,2.20287392,132.71,132.69,8.19951348]
[1767405534764,2.97308295,132.72,132.69,8.19951348]
[1767405535060,2.20287392,132.71,132.69,8.19951348]
[1767405537145,0.77020903,132.72,132.69,8.19951348]
[1767405537349,2.97308295,132.72,132.69,8.19951348]
[1767405538851,0.1,132.72,132.7,0.66333351]
[1767405539165,2.34676541,132.71,132.68,0.63393104]
[1767405539866,2.20287392,132.7,132.68,0.63393104]
[1767405540083,2.20287392,132.7,132.68,8.1707737]
[1767405540248,2.34676541,132.71,132.68,8.1707737]
[1767405540444,2.20287392,132.7,132.68,8.1707737]
[1767405542567,2.34676541,132.71,132.68,8.1707737]
[1767405543870,0.14389149,132.71,132.69,0.69824284]
[1767405545270,0.14389149,132.71,132.68,8.2350855]
[1767405546052,0.14389149,132.71,132.69,7.53630077]
[1767405548176,0.14910203,132.69,132.66,0.69824284]
[1767405548377,2.35197595,132.69,132.66,0.69824284]
[1767405548956,2.35197595,132.69,132.66,8.23617009]
[1767405549487,8.20581838,132.7,132.67,0.69824284]
[1767405549683,2.20287392,132.69,132.67,0.69824284]
[1767405550389,2.34696356,132.69,132.66,0.69824284]
[1767405550687,2.20287392,132.69,132.66,0.69824284]
[1767405550978,0.67000887,132.7,132.66,0.69824284]
[1767405551182,2.87288279,132.7,132.66,0.69824284]
[1767405551978,2.20287392,132.69,132.66,0.69824284]
[1767405553063,2.34696356,132.69,132.66,8.23606347]
[1767405556590,2.34696356,132.69,132.67,0.69824284]
[1767405557084,2.34696356,132.69,132.65,26.38506895]
[1767405557289,2.34696356,132.69,132.66,0.69824284]
[1767405560187,2.34696356,132.69,132.66,8.23602342]
[1767405560992,0.14408964,132.69,132.66,8.23602342]
[1767405561199,2.34696356,132.69,132.66,8.23602342]
[1767405561578,0.14408964,132.69,132.66,8.23602342]
[1767405561785,7.4000876,132.7,132.67,0.69824284]
[1767405561972,2.34696356,132.7,132.67,0.69824284]
[1767405562493,3.58226439,132.7,132.67,8.23549349]
[1767405566200,3.43817475,132.69,132.67,8.23549349]
[1767405566894,0.14408964,132.7,132.67,8.23549349]
[1767405567069,3.43817475,132.69,132.67,8.23549349]
[1767405567269,3.58226439,132.7,132.67,8.23549349]
[1767405571817,3.43817475,132.69,132.67,8.23549349]
[1767405592253,5.07079261,132.68,132.67,8.23549349]
[1767405592635,5.07079261,132.68,132.64,0.67736592]
[1767405592636,0.04929624,132.67,132.64,0.67736592]
[1767405592829,0.04929624,132.67,132.63,7.53942849]
[1767405592830,10.70379925,132.66,132.63,7.53942849]
[1767405593035,4.90800664,132.65,132.63,7.53942849]
[1767405593256,3.43817475,132.67,132.63,7.53942849]
[1767405593556,5.06668253,132.66,132.63,7.53942849]
[1767405593740,5.06668253,132.65,132.62,26.39053378]
[1767405593947,3.43817475,132.67,132.62,26.39053378]
[1767405594150,5.06620895,132.66,132.62,26.39053378]
[1767405594341,3.43817475,132.67,132.62,26.39053378]
[1767405594534,5.06447514,132.66,132.62,26.39053378]
[1767405594852,3.43817475,132.67,132.63,0.67736592]
[1767405595158,3.43817475,132.67,132.64,0.67736592]
[1767405595159,5.06495811,132.66,132.64,0.67736592]
[1767405595353,4.14043739,132.67,132.63,7.53936122]
[1767405595550,5.06361691,132.66,132.63,7.53936122]
[1767405595751,4.14043739,132.67,132.63,7.53936122]
[1767405595949,5.06361691,132.66,132.63,7.53936122]
[1767405596259,4.14043739,132.67,132.62,26.39053378]
[1767405596443,5.06248396,132.66,132.62,26.39053378]
[1767405597454,5.06248396,132.66,132.63,0.67736592]
[1767405597857,4.14043739,132.67,132.63,0.67736592]
[1767405598163,5.0610762,132.66,132.64,0.67736592]
[1767405598335,5.0610762,132.66,132.63,7.53964066]
[1767405598532,4.14043739,132.67,132.63,7.53964066]
[1767405598758,5.06002479,132.66,132.63,7.53964066]
[1767405598938,4.14043739,132.67,132.63,7.53964066]
[1767405599138,5.06002625,132.66,132.63,7.53964066]
[1767405600157,5.06002625,132.66,132.62,26.39053378]
[1767405600538,5.06002625,132.66,132.63,0.093606]
[1767405602349,8.498201,132.66,132.63,0.093606]
[1767405602551,3.43817475,132.66,132.63,0.093606]
[1767405602947,4.09338987,132.66,132.63,0.093606]
[1767405603446,4.09338987,132.64,132.6,0.75414781]
[1767405603644,4.09338987,132.62,132.58,0.093606]
[1767405603947,4.09338987,132.62,132.59,7.63528243]
[1767405605156,5.61404654,132.61,132.59,0.093606]
[1767405605396,4.09338987,132.62,132.59,0.093606]
[1767405605555,5.61145919,132.61,132.59,0.093606]
[1767405605865,4.09338987,132.62,132.59,0.093606]
[1767405606047,5.61214897,132.61,132.59,0.093606]
[1767405606365,4.09338987,132.62,132.59,0.093606]
[1767405606566,5.60994665,132.61,132.59,0.093606]
[1767405606771,4.09338987,132.62,132.59,0.093606]
[1767405606953,5.60994665,132.61,132.59,0.093606]
[1767405607154,4.09338987,132.62,132.59,0.093606]
[1767405607353,0.65521512,132.61,132.59,0.093606]
[1767405607556,4.09338987,132.62,132.59,0.093606]
[1767405608055,0.65521512,132.61,132.58,7.63622177]
[1767405608643,4.09338987,132.61,132.58,7.63622177]
[1767405608868,0.65521512,132.6,132.58,7.54261577]
[1767405609538,4.09338987,132.6,132.58,7.54261577]
[1767405610553,4.09338987,132.6,132.57,0.093606]
[1767405612084,3.43817475,132.59,132.57,0.093606]
[1767405612246,0.65521512,132.57,132.55,0.2]
[1767405612453,4.06338987,132.57,132.55,0.2]
[1767405612650,0.62521512,132.57,132.55,0.2]
[1767405612866,3.43817475,132.56,132.55,0.2]
[1767405615655,3.43817475,132.56,132.54,7.66827945]
[1767405619373,3.43817475,132.59,132.55,0.123606]
[1767405619584,4.09338987,132.6,132.56,0.123606]
[1767405620291,0.65521512,132.6,132.56,0.123606]
[1767405620478,4.09338987,132.6,132.56,0.123606]
[1767405620674,4.09338987,132.6,132.57,7.66679073]
[1767405621591,0.65521512,132.6,132.57,7.66679073]
[1767405625596,2.85872172,132.6,132.57,7.66679073]
[1767405626490,13.76,132.63,132.56,7.54356206]
[1767405626491,2.85872172,132.59,132.56,7.54356206]
[1767405627276,2.82872172,132.59,132.56,7.54356206]
[1767405627885,2.2035066,132.59,132.56,7.54356206]
[1767405628082,2.95748381,132.59,132.56,7.54356206]
[1767405629181,0.65802454,132.58,132.56,7.54356206]
[1767405635015,3.67198924,132.6,132.57,0.153606]
[1767405635183,5.58074631,132.59,132.57,0.153606]
[1767405635387,3.67198924,132.6,132.56,7.69716806]
[1767405635691,6.29719703,132.59,132.56,7.69716806]
[1767405635906,0.71450543,132.59,132.56,7.69716806]
[1767405636190,0.71450543,132.6,132.57,0.153606]
[1767405639918,0.71450543,132.6,132.57,7.69641047]
[1767405640210,2.91801203,132.6,132.57,7.69641047]
[1767405642106,0.71450543,132.6,132.57,7.69641047]
[1767405643416,5.59748868,132.59,132.57,7.69641047]
[1767405643719,0.71450543,132.6,132.57,7.69641047]
[1767405643920,5.60143494,132.59,132.57,7.69641047]
[1767405644120,0.71450543,132.6,132.57,7.69641047]
[1767405644416,5.60192431,132.59,132.57,7.69641047]
[1767405644618,0.71450543,132.6,132.57,7.69641047]
[1767405644810,5.6035097,132.59,132.57,7.69641047]
[1767405645004,0.71450543,132.6,132.57,7.69641047]
[1767405645502,8.29441881,132.62,132.58,0.153606]
[1767405645503,0.71450543,132.62,132.58,0.153606]
[1767405645712,0.71450543,132.63,132.6,0.153606]
[1767405646019,0.71450543,132.63,132.6,13.913606]
[1767405646319,0.75397721,132.64,132.61,0.153606]
[1767405646320,0.71450543,132.64,132.61,0.153606]
[1767405646704,0.71450543,132.64,132.61,7.69428061]
[1767405647298,0.71450543,132.63,132.61,7.54067461]
[1767405654714,0.71450543,132.63,132.61,7.51244781]
[1767405655825,0.71450543,132.63,132.61,7.484172]
[1767405656209,0.71450543,132.63,132.61,7.45558035]
[1767405659635,0.67069729,132.61,132.58,0.153606]
[1767405661218,16.71748381,132.65,132.6,0.153606]
[1767405661219,0.67069729,132.63,132.6,0.153606]
[1767405661416,5.61204454,132.62,132.6,0.153606]
[1767405661738,5.61204454,132.62,132.59,7.54160068]
[1767405661739,0.67069729,132.62,132.59,7.69520668]
[1767405662236,0.67069729,132.62,132.59,26.55032395]
[1767405663747,0.67069729,132.63,132.6,0.153606]
[1767405665947,0.67069729,132.63,132.61,7.54090943]
[1767405666126,0.67069729,132.63,132.61,7.51260719]
[1767405666832,0.67069729,132.62,132.61,7.48316404]